fUSD/lending_fUSD_20260129
["ID","MTS","AMOUNT","RATE_DAILY","PERIOD"]
[404002783,1769709031973,-500.0,0.00015915,2]
[404002784,1769709031983,-500.0,0.00015915,2]
[404002785,1769709031992,-500.0,0.00015915,2]
[404002786,1769709032003,-500.0,0.00015915,2]
[404002787,1769709032012,-500.0,0.00015915,2]
[404002788,1769709032022,-500.0,0.00015915,2]
[404002789,1769709032031,-500.0,0.00015915,2]
[404002790,1769709032041,-500.0,0.00015915,2]
[404002791,1769709032051,-500.0,0.00015915,2]
[404002792,1769709032060,-500.0,0.00015915,2]
[404002793,1769709032070,-500.0,0.00015915,2]
[404002794,1769709032080,-500.0,0.00015915,2]
[404002795,1769709032089,-207.28145835,0.00015915,2]
[404002796,1769709032098,-500.0,0.00015915,2]
[404002797,1769709032108,-500.0,0.00015915,2]
[404002798,1769709032117,-500.0,0.00015915,2]
[404002799,1769709032126,-500.0,0.00015915,2]
[404002800,1769709032135,-500.0,0.00015915,2]
[404002801,1769709032146,-500.0,0.00015915,2]
[404002802,1769709032155,-500.0,0.00015915,2]
[404002803,1769709032164,-600.96659479,0.00015915,2]
[404002804,1769709032173,-500.0,0.00015915,2]
[404002805,1769709032182,-500.0,0.00015915,2]
[404002806,1769709032191,-500.0,0.00015915,2]
[404002807,1769709032201,-500.0,0.00015915,2]
[404002808,1769709032210,-500.0,0.00015915,2]
[404002809,1769709032219,-200.86186932,0.00015915,2]
[404002810,1769709032229,-876.75,0.00015915,2]
[404002811,1769709032238,-44937.82425326,0.00015916,2]
[404002812,1769709032250,-4412.43985683,0.00015916,2]
[404002813,1769709032421,-47008.21412309,0.00015916,2]
[404002814,1769709032432,-865.0,0.00015916,2]
[404002815,1769709032444,-1671.86578712,0.00015916,2]
[404002817,1769709037684,-151.0,0.00015907,2]
[404002818,1769709037695,-959.532,0.00015916,2]
[404002819,1769709037708,-100064.00148711,0.00015916,2]
[404002820,1769709037739,-1142.4562616,0.00015916,2]
[404002821,1769709037795,-2519.4917276,0.00015916,2]
[404002822,1769709037903,-1582.04922828,0.00015916,2]
[404002823,1769709038013,-2477.87316409,0.00015916,2]
[404002824,1769709038026,-285.94854047,0.00015916,2]
[404002825,1769709038038,-334417.33349322,0.00015916,2]
[404002826,1769709038055,-1795.11324317,0.00015916,2]
[404002827,1769709038067,-284.43,0.00015916,2]
[404002830,1769709038080,-135675.52038861,0.00015916,2]
[404002970,1769709039699,-644.20590704,0.00015916,2]
[404002971,1769709039713,-845.49,0.00015916,2]
[404002972,1769709039755,-1694.305,0.00015916,2]
[404002973,1769709039766,-991.07090189,0.00015916,2]
[404002974,1769709039777,-3364.85993662,0.00015916,2]
[404002975,1769709039788,-1000.0,0.00015918,2]
[404002976,1769709039797,-2844.91322461,0.00015938,2]
[404002977,1769709039806,-500.0,0.00015961,2]
[404002978,1769709039816,-500.0,0.00015961,2]
[404002979,1769709039827,-500.0,0.00015961,2]
[404002980,1769709039836,-500.0,0.00015961,2]
[404002981,1769709039846,-3747.608,0.00016015,2]
[404002982,1769709039855,-268.317,0.00016015,2]
[404002983,1769709039865,-500.0,0.00016016,2]
[404002984,1769709039874,-500.0,0.00016016,2]
[404002985,1769709039884,-162.54801825,0.00016016,2]
[404002986,1769709039893,-500.0,0.00016016,2]
[404002987,1769709039907,-153.72473404,0.00016016,2]
[404002988,1769709039920,-1358.51759,0.00016038,2]
[404002989,1769709039930,-6749.30181696,0.00016049,2]
[404002990,1769709039941,-301.95608544,0.00016071,2]
[404002991,1769709039951,-150.0,0.00016166,2]
[404002992,1769709039963,-150.0,0.00016166,2]
[404002993,1769709039972,-500.0,0.00016166,2]
[404002994,1769709039982,-500.0,0.00016166,2]
[404002995,1769709039992,-500.0,0.00016166,2]
[404002996,1769709040003,-290.22964713,0.00016166,2]
[404002997,1769709040012,-500.0,0.00016166,2]
[404002998,1769709040021,-500.0,0.00016166,2]
[404002999,1769709040031,-252.34395111,0.00016166,2]
[404003000,1769709040040,-500.0,0.00016166,2]
[404003001,1769709040051,-876.75,0.00016189,2]
[404003002,1769709040061,-1071.11189023,0.0001622,5]
[404003003,1769709040071,-150.0,0.00016221,2]
[404003004,1769709040080,-150.0,0.00016221,2]
[404003005,1769709040091,-500.0,0.00016221,2]
[404003006,1769709040103,-500.0,0.00016221,2]
[404003007,1769709040113,-500.0,0.00016221,2]
[404003008,1769709040123,-500.0,0.00016221,2]
[404003009,1769709040134,-500.0,0.00016221,2]
[404003010,1769709040144,-500.0,0.00016221,2]
[404003011,1769709040154,-500.0,0.00016237,2]
[404003012,1769709040165,-500.0,0.00016237,2]
[404003013,1769709040175,-500.0,0.00016237,2]
[404003014,1769709040189,-1358.5176,0.00016238,2]
[404003015,1769709040199,-596.03357104,0.00016267,2]
[404003016,1769709040210,-250.0,0.00016276,2]
[404003017,1769709040220,-150.0,0.00016276,2]
[404003018,1769709040231,-500.0,0.00016276,2]
[404003019,1769709040241,-500.0,0.00016276,2]
[404003020,1769709040252,-500.0,0.00016276,2]
[404003021,1769709040262,-500.0,0.00016276,2]
[404003022,1769709040272,-500.0,0.00016276,2]
[404003023,1769709040282,-500.0,0.00016276,2]
[404003024,1769709040292,-6749.30181696,0.00016281,2]
[404003025,1769709040301,-2942.69,0.00016314,2]
[404003026,1769709040315,-150.0,0.0001633,2]
[404003027,1769709040325,-500.0,0.0001633,2]
[404003028,1769709040335,-500.0,0.0001633,2]
[404003029,1769709040344,-500.0,0.0001633,2]
[404003030,1769709040354,-500.0,0.0001633,2]
[404003031,1769709040364,-500.0,0.0001633,2]
[404003032,1769709040374,-500.0,0.0001633,2]
[404003033,1769709040384,-247.32301206,0.00016338,2]
[404003034,1769709040395,-165.13,0.00016365,2]
[404003035,1769709040404,-500.0,0.00016373,2]
[404003036,1769709040413,-500.0,0.00016373,2]
[404003037,1769709040423,-500.0,0.00016373,2]
[404003038,1769709040432,-500.0,0.00016373,2]
[404003039,1769709040441,-606.81558128,0.00016373,2]
[404003041,1769709040451,-500.0,0.00016373,2]
[404003042,1769709040461,-500.0,0.00016373,2]
[404003043,1769709040470,-500.0,0.00016373,2]
[404003044,1769709040479,-500.0,0.00016373,2]
[404003045,1769709040488,-500.0,0.00016373,2]
[404003046,1769709040498,-500.0,0.00016373,2]
[404003047,1769709040510,-279.63759782,0.00016385,2]
[404003048,1769709040520,-500.0,0.00016385,2]
[404003049,1769709040530,-500.0,0.00016385,2]
[404003050,1769709040539,-500.0,0.00016385,2]
[404003051,1769709040549,-500.0,0.00016385,2]
[404003052,1769709040558,-500.0,0.00016385,2]
[404003053,1769709040568,-500.0,0.00016385,2]
[404003054,1769709040578,-500.0,0.00016438,2]
[404003055,1769709040588,-500.0,0.00016438,2]
[404003056,1769709040597,-500.0,0.00016438,2]
[404003057,1769709040607,-500.0,0.00016438,2]
[404003058,1769709040617,-500.0,0.00016438,2]
[404003059,1769709040627,-500.0,0.00016438,2]
[404003060,1769709040636,-500.0,0.00016438,2]
[404003061,1769709040645,-500.0,0.00016438,2]
[404003062,1769709040655,-500.0,0.00016438,2]
[404003063,1769709040664,-500.0,0.00016438,2]
[404003064,1769709040673,-500.0,0.00016438,2]
[404003065,1769709040682,-500.0,0.00016438,2]
[404003066,1769709040692,-500.0,0.00016438,2]
[404003067,1769709040701,-500.0,0.00016438,2]
[404003068,1769709040711,-500.0,0.00016438,2]
[404003069,1769709040720,-500.0,0.00016438,2]
[404003070,1769709040730,-500.0,0.00016438,2]
[404003071,1769709040740,-500.0,0.00016438,2]
[404003072,1769709040749,-500.0,0.00016438,2]
[404003073,1769709040761,-500.0,0.00016438,2]
[404003074,1769709040770,-500.0,0.00016438,2]
[404003075,1769709040779,-500.0,0.00016438,2]
[404003076,1769709040788,-500.0,0.00016438,2]
[404003077,1769709040798,-500.0,0.00016438,2]
[404003078,1769709040807,-500.0,0.00016438,2]
[404003079,1769709040816,-500.0,0.00016438,2]
[404003080,1769709040826,-500.0,0.00016438,2]
[404003081,1769709040835,-387.502327,0.00016438,2]
[404003082,1769709040844,-500.0,0.00016438,2]
[404003083,1769709040854,-500.0,0.00016438,2]
[404003084,1769709040863,-500.0,0.00016438,2]
[404003085,1769709040873,-500.0,0.00016438,2]
[404003086,1769709040883,-500.0,0.00016438,2]
[404003087,1769709040900,-500.0,0.00016438,2]
[404003088,1769709040911,-500.0,0.00016438,2]
[404003089,1769709040921,-500.0,0.00016438,2]
[404003090,1769709040931,-600.0,0.00016438,2]
[404003091,1769709040940,-500.0,0.00016438,2]
[404003092,1769709040950,-500.0,0.00016438,2]
[404003093,1769709040962,-500.0,0.00016438,2]
[404003094,1769709040973,-341.61275203,0.00016438,2]
[404003095,1769709040983,-1023.81512056,0.00016438,2]
[404003096,1769709040995,-2779.16558709,0.00016438,2]
[404003097,1769709041005,-1358.51759,0.00016438,2]
[404003098,1769709041015,-250.14792117,0.00016438,2]
[404003099,1769709041027,-227.11,0.00016438,2]
[404003100,1769709041037,-500.0,0.0001644,2]
[404003101,1769709041048,-350.0,0.0001644,2]
[404003102,1769709041058,-500.0,0.0001644,2]
[404003103,1769709041068,-500.0,0.0001644,2]
[404003104,1769709041078,-500.0,0.0001644,2]
[404003105,1769709041087,-500.0,0.0001644,2]
[404003106,1769709041097,-165.31,0.0001644,2]
[404003107,1769709041106,-876.75,0.00016463,2]
[404003108,1769709041116,-1404.38,0.00016493,2]
[404003109,1769709041126,-500.0,0.00016495,2]
[404003110,1769709041135,-7000.0,0.000165,2]
[404003111,1769709041145,-6749.30181696,0.00016512,2]
[404003112,1769709041154,-1000.0,0.00016515,2]
[404003113,1769709041164,-451.76834126,0.0001655,2]
[404003114,1769709041173,-166.67,0.00016592,2]
[404003115,1769709041183,-250.0,0.00016611,2]
[404003116,1769709041192,-250.0,0.00016611,2]
[404003117,1769709041202,-174.61919141,0.00016611,2]
[404003118,1769709041211,-250.0,0.00016611,2]
[404003119,1769709041220,-500.0,0.00016611,2]
[404003120,1769709041230,-250.0,0.00016611,2]
[404003121,1769709041239,-500.0,0.00016611,2]
[404003122,1769709041250,-250.0,0.00016611,2]
[404003123,1769709041261,-854.2589148,0.00016611,2]
[404003124,1769709041270,-500.0,0.00016611,2]
[404003125,1769709041283,-250.0,0.00016611,2]
[404003126,1769709041293,-500.0,0.00016611,2]
[404003127,1769709041302,-250.0,0.00016611,2]
[404003128,1769709041311,-500.0,0.00016611,2]
[404003129,1769709041321,-250.0,0.00016611,2]
[404003130,1769709041330,-500.0,0.00016611,2]
[404003131,1769709041340,-250.0,0.00016611,2]
[404003132,1769709041349,-500.0,0.00016611,2]
[404003133,1769709041359,-250.0,0.00016611,2]
[404003134,1769709041368,-500.0,0.00016611,2]
[404003135,1769709041378,-250.0,0.00016611,2]
[404003136,1769709041387,-500.0,0.00016611,2]
[404003137,1769709041396,-500.0,0.00016611,2]
[404003138,1769709041406,-500.0,0.00016611,2]
[404003139,1769709041415,-322.6107,0.00016611,2]
[404003140,1769709041425,-209.40437684,0.00016611,2]
[404003141,1769709041435,-250.0,0.00016611,2]
[404003142,1769709041445,-250.0,0.00016611,2]
[404003143,1769709041455,-250.0,0.00016611,2]
[404003144,1769709041465,-250.0,0.00016611,2]
[404003145,1769709041475,-250.0,0.00016611,2]
[404003146,1769709041484,-250.0,0.00016611,2]
[404003147,1769709041493,-250.0,0.00016611,2]
[404003148,1769709041504,-250.0,0.00016611,2]
[404003149,1769709041513,-250.0,0.00016611,2]
[404003150,1769709041523,-250.0,0.00016611,2]
[404003151,1769709041532,-250.0,0.00016611,2]
[404003152,1769709041542,-250.0,0.00016611,2]
[404003153,1769709041551,-257.17431342,0.00016611,2]
[404003154,1769709041560,-250.0,0.00016611,2]
[404003155,1769709041569,-500.0,0.00016611,2]
[404003156,1769709041579,-500.0,0.00016611,2]
[404003157,1769709041588,-250.0,0.00016611,2]
[404003158,1769709041598,-500.0,0.00016611,2]
[404003159,1769709041607,-250.0,0.00016611,2]
[404003160,1769709041617,-500.0,0.00016611,2]
[404003161,1769709041626,-1000.0,0.00016611,2]
[404003162,1769709041635,-250.0,0.00016611,2]
[404003163,1769709041644,-500.0,0.00016611,2]
[404003164,1769709041654,-1000.0,0.00016611,2]
[404003165,1769709041666,-250.0,0.00016611,2]
[404003166,1769709041675,-500.0,0.00016611,2]
[404003167,1769709041684,-1000.0,0.00016611,2]
[404003168,1769709041694,-500.0,0.00016611,2]
[404003169,1769709041703,-1000.0,0.00016611,2]
[404003170,1769709041712,-500.0,0.00016611,2]
[404003171,1769709041721,-1000.0,0.00016611,2]
[404003172,1769709041731,-500.0,0.00016611,2]
[404003173,1769709041740,-1000.0,0.00016611,2]
[404003174,1769709041749,-500.0,0.00016611,2]
[404003175,1769709041759,-1000.0,0.00016611,2]
[404003176,1769709041768,-500.0,0.00016611,2]
[404003177,1769709041778,-500.0,0.00016611,2]
[404003178,1769709041787,-1000.0,0.00016611,2]
[404003179,1769709041796,-250.0,0.00016611,2]
[404003180,1769709041806,-500.0,0.00016611,2]
[404003181,1769709041816,-1130.5264276,0.00016611,2]
[404003182,1769709041825,-250.0,0.00016611,2]
[404003183,1769709041834,-500.0,0.00016611,2]
[404003184,1769709041843,-250.0,0.00016611,2]
[404003185,1769709041852,-500.0,0.00016611,2]
[404003186,1769709041861,-500.0,0.00016611,2]
[404003187,1769709041871,-500.0,0.00016611,2]
[404003188,1769709041880,-500.0,0.00016611,2]
[404003189,1769709041890,-500.0,0.00016611,2]
[404003190,1769709041899,-500.0,0.00016611,2]
[404003191,1769709041908,-500.0,0.00016611,2]
[404003192,1769709041917,-500.0,0.00016611,2]
[404003193,1769709041927,-721.12765535,0.00016611,2]
[404003194,1769709041936,-1358.5176,0.00016638,2]
[404003195,1769709041945,-250.0,0.00016663,2]
[404003196,1769709041957,-217.15233878,0.00016666,2]
[404003197,1769709041966,-165.14,0.00016712,2]
[404003198,1769709041975,-225.18697532,0.00016721,2]
[404003199,1769709041984,-500.0,0.00016724,2]
[404003200,1769709041994,-876.75,0.00016737,2]
[404003201,1769709042006,-1572.94202416,0.00016767,2]
[404003202,1769709042016,-2774.85617738,0.00016767,2]
[404003203,1769709042024,-4151.01888812,0.00016767,2]
[404003204,1769709042034,-5616.468,0.00016767,2]
[404003205,1769709042043,-233.51889341,0.00016776,2]
[404003206,1769709042055,-242.15909246,0.00016831,2]
[404003207,1769709042065,-1358.51759,0.00016838,2]
[404003208,1769709042074,-251.11897888,0.00016886,2]
[404003209,1769709042083,-170.02098922,0.00016896,2]
[404003210,1769709042093,-1000.0,0.00016921,2]
[404003211,1769709042102,-1046.22489308,0.00016921,2]
[404003212,1769709042112,-226.99112244,0.00016921,2]
[404003213,1769709042121,-1000.0,0.00016921,2]
[404003214,1769709042130,-1000.0,0.00016921,2]
[404003215,1769709042139,-1000.0,0.00016921,2]
[404003216,1769709042148,-1000.0,0.00016921,2]
[404003217,1769709042158,-1000.0,0.00016921,2]
[404003218,1769709042167,-1007.7084502,0.00016921,2]
[404003219,1769709042176,-1000.0,0.00016921,2]
[404003220,1769709042185,-1848.57,0.00016922,2]
[404003221,1769709042194,-329.69,0.00016922,2]
[404003222,1769709042203,-299.99,0.00016922,4]
[404003223,1769709042212,-15408.91,0.00016922,2]
[404003224,1769709042221,-260.4103811,0.00016941,2]
[404003225,1769709042230,-510.0,0.00016961,2]
[404003226,1769709042239,-195.0,0.00016966,2]
[404003227,1769709042248,-250.0,0.00016966,2]
[404003228,1769709042258,-20983.03175521,0.00016984,2]
[404003229,1769709042267,-270.0455652,0.00016996,2]
[404003230,1769709042277,-500.0,0.00016999,2]
[404003231,1769709042286,-500.0,0.00016999,2]
[404003232,1769709042295,-250.0,0.00017,2]
[404003233,1769709042304,-876.75,0.00017011,2]
[404003234,1769709042313,-280.03725112,0.00017051,2]
[404003235,1769709042323,-290.39862941,0.00017106,2]
[404003236,1769709042332,-1000.0,0.00017112,2]
[404003237,1769709042341,-500.0,0.00017116,2]
[404003238,1769709042350,-181.08010149,0.00017159,2]
[404003239,1769709042358,-885.86649465,0.00017159,2]
[404003240,1769709042367,-301.1433787,0.00017161,2]
[404003241,1769709042376,-1100.0,0.000172,6]
[404003242,1769709042385,-20983.03175521,0.00017213,2]
[404003243,1769709042396,-876.75,0.00017285,2]
[404003244,1769709042405,-1700.0,0.000173,6]
[404003245,1769709042416,-1680.0,0.00017301,2]
[404003247,1769709042425,-2300.0,0.000174,6]
[404003249,1769709042435,-195.0,0.00017422,2]
[404003251,1769709042448,-20983.03175521,0.00017442,2]
[404003253,1769709042458,-166.67,0.00017457,2]
[404003256,1769709042467,-1500.0,0.00017468,2]
[404003257,1769709042477,-796.55427389,0.00017468,2]
[404003259,1769709042486,-346.0,0.000175,5]
[404003260,1769709042495,-2900.0,0.000175,6]
[404003262,1769709042505,-4777.0,0.00017519,2]
[404003264,1769709042515,-876.75,0.00017559,2]
[404003266,1769709042524,-7159.85,0.00017566,2]
[404003267,1769709042533,-500.0,0.000176,6]
[404003268,1769709042543,-797.51961959,0.0001764,2]
[404003269,1769709042552,-1303.0,0.00017641,2]
[404003270,1769709042562,-151.0,0.00017668,2]
[404003271,1769709042571,-20983.03175521,0.00017671,2]
[404003272,1769709042580,-500.0,0.000177,6]
[404003273,1769709042590,-187.78006525,0.00017707,2]
[404003274,1769709042599,-918.64355495,0.00017707,2]
[404003275,1769709042609,-1000.0,0.00017709,2]
[404003276,1769709042618,-165.13,0.00017729,2]
[404003277,1769709042628,-1303.0,0.00017794,2]
[404003278,1769709042637,-250.0,0.000178,5]
[404003279,1769709042646,-250.0,0.000178,5]
[404003280,1769709042665,-250.0,0.000178,5]
[404003281,1769709042677,-250.0,0.000178,5]
[404003282,1769709042686,-250.0,0.000178,5]
[404003283,1769709042696,-250.0,0.000178,5]
[404003284,1769709042706,-250.0,0.000178,5]
[404003285,1769709042716,-250.0,0.000178,5]
[404003286,1769709042725,-250.0,0.000178,5]
[404003287,1769709042734,-250.0,0.000178,5]
[404003288,1769709042743,-250.0,0.000178,5]
[404003289,1769709042753,-250.0,0.000178,5]
[404003290,1769709042762,-250.0,0.000178,5]
[404003291,1769709042771,-250.0,0.000178,5]
[404003292,1769709042781,-250.0,0.000178,5]
[404003293,1769709042790,-291.517907,0.000178,5]
[404003294,1769709042800,-500.0,0.000178,6]
[404003295,1769709042809,-8342.09633094,0.0001782,2]
[404003296,1769709042819,-1303.0,0.00017821,2]
[404003297,1769709042828,-876.78880262,0.00017833,2]
[404003298,1769709042840,-1303.0,0.00017842,2]
[404003299,1769709042849,-25000.0,0.00017874,3]
[404003300,1769709042858,-165.31,0.00017881,2]
[404003301,1769709042867,-25000.0,0.00017882,3]
[404003302,1769709042876,-25000.0,0.00017891,3]
[404003303,1769709042886,-25000.0,0.000179,3]
[404003304,1769709042895,-10000.0,0.000179,2]
[404003305,1769709042905,-22178.4165062,0.000179,2]
[404003306,1769709042914,-20983.03175521,0.000179,2]
[404003307,1769709042924,-2889.82398704,0.000179,3]
[404003308,1769709042933,-500.0,0.000179,6]
[404003309,1769709042942,-8089.0,0.000179,2]
[404003310,1769709042951,-500.0,0.00017973,2]
[404003311,1769709042963,-505.47748232,0.00017973,2]
[404003312,1769709042972,-500.0,0.00017973,2]
[404003313,1769709042982,-500.0,0.00017973,2]
[404003314,1769709042991,-500.0,0.00017973,2]
[404003315,1769709043003,-500.0,0.00017973,2]
[404003316,1769709043012,-500.0,0.00017973,2]
[404003317,1769709043022,-500.0,0.00017973,2]
[404003318,1769709043031,-378.88576021,0.00017973,2]
[404003319,1769709043041,-500.0,0.00017973,2]
[404003320,1769709043051,-636.09023448,0.00017973,2]
[404003321,1769709043060,-500.0,0.00017973,2]
[404003322,1769709043071,-500.0,0.00017973,2]
[404003323,1769709043081,-500.0,0.00017973,2]
[404003324,1769709043090,-500.0,0.00017973,2]
[404003325,1769709043100,-580.50276213,0.00017973,2]
[404003326,1769709043109,-500.0,0.00017973,2]
[404003327,1769709043118,-500.0,0.00017973,2]
[404003328,1769709043127,-500.0,0.00017973,2]
[404003329,1769709043136,-500.0,0.00017973,2]
[404003331,1769709043146,-525.04982288,0.00017973,2]
[404003333,1769709043156,-500.0,0.00017973,2]
[404003335,1769709043165,-500.0,0.00017973,2]
[404003336,1769709043174,-500.0,0.00017973,2]
[404003337,1769709043183,-500.0,0.00017973,2]
[404003338,1769709043194,-2000.0,0.00017973,2]
[404003339,1769709043203,-2000.0,0.00017973,2]
[404003340,1769709043213,-2000.0,0.00017973,2]
[404003341,1769709043223,-1000.0,0.00017973,2]
[404003342,1769709043232,-1000.0,0.00017973,2]
[404003348,1769709043412,-1000.0,0.00017973,2]
[404003349,1769709043425,-1500.64,0.00017976,2]
[404003350,1769709043435,-1000.0,0.00017976,2]
[404003351,1769709043444,-1000.0,0.00017976,2]
[404003352,1769709043454,-1000.0,0.00017976,2]
[404003353,1769709043463,-334.5472959,0.0001798,2]
[404003354,1769709043472,-165.31,0.0001799,2]
[404003355,1769709043481,-151.0,0.00017997,2]
[404003356,1769709043490,-300.0,0.00017999,2]
[404003357,1769709043499,-666.0,0.00017999,2]
[404003358,1769709043510,-300.0,0.00017999,2]
[404003359,1769709043520,-12037.49230373,0.00017999,2]
[404003360,1769709043529,-300.0,0.00017999,2]
[404003361,1769709043539,-666.0,0.00017999,2]
[404003362,1769709043549,-2929054.98041134,0.00018,2]
[404003363,1769709043574,-2019.0,0.000177,2]
[404003364,1769709043584,-1962.30851948,0.00018,2]
[404003365,1769709043613,-6749.30181696,0.00016743,2]
[404003366,1769709043624,-3389.27490972,0.00018,2]
[404003367,1769709043759,-151.0,0.00015998,2]
[404003368,1769709043768,-136.80291528,0.00018,2]
[404003369,1769709043780,-658866.03894467,0.00018,2]
[404003370,1769709043792,-2296.8421588,0.00018,2]
[404003371,1769709044036,-19103.32177745,0.00018,2]
[404003372,1769709044049,-317.85209135,0.00018,2]
[404003373,1769709044061,-4382.90232822,0.00018,2]
[404003374,1769709045149,-6749.30181696,0.00016975,2]
[404003375,1769709045161,-63376.25679807,0.00018,2]
[404003379,1769709045682,-4516.21416499,0.00018,2]
[404003380,1769709045695,-400.0,0.00018,2]
[404003381,1769709045707,-8163.64244957,0.00018,2]
[404003382,1769709045736,-430168.9683811,0.00018,2]
[404003383,1769709045748,-18770.97929346,0.00018,2]
[404003384,1769709045763,-1764.57105184,0.00018,2]
[404003385,1769709045793,-51019.88106128,0.00018,2]
[404003386,1769709045805,-1000.0,0.00018,2]
[404003387,1769709045817,-400.0,0.00018,2]
[404003388,1769709045829,-160262.2850992,0.00018,2]
[404003389,1769709045849,-522.02000001,0.00018,2]
[404003403,1769709046021,-849.8,0.00018,2]
[404003412,1769709046076,-553.29706463,0.00018,2]
[404003414,1769709046090,-1159.3,0.00018,2]
[404003416,1769709046103,-3713.08295613,0.00018,2]
[404003418,1769709046116,-33046.96278519,0.00018,2]
[404003424,1769709046161,-395.5992977,0.00018,2]
[404003719,1769709428226,346.0,0.000142,5]
[404003801,1769709880204,6871.06,0.00012692,2]
[404003813,1769709900385,358.0,0.00013713,2]
[404003847,1769709966684,166.82,0.00012345,2]
[404003926,1769710151143,-166.82,0.00014403,2]
[404003927,1769710151163,-150.0,0.00015194,2]
[404003928,1769710151186,-2611.39,0.00015344,2]
[404003929,1769710151206,-250.0,0.00015388,2]
[404003930,1769710151227,-195.0,0.00015388,2]
[404003931,1769710151247,-1177.01,0.00015432,2]
[404003932,1769710156096,-250.0,0.00015488,2]
[404003933,1769710156117,-1200.0,0.00015552,2]
[404003934,1769710156140,-300.0,0.00015552,2]
[404003935,1769710156165,-3565.381036,0.00015553,2]
[404003936,1769710160289,-700.598864,0.00015553,2]
[404003937,1769710160308,-200.0,0.00015561,2]
[404003938,1769710160328,-2844.91322461,0.00015638,2]
[404003939,1769710160354,-3747.608,0.00015653,2]
[404003940,1769710160376,-268.317,0.00015653,2]
[404003941,1769710160397,-151.0,0.00015687,2]
[404003942,1769710160418,-151.0,0.00015687,2]
[404003943,1769710160439,-151.0,0.00015687,2]
[404003944,1769710160462,-151.0,0.00015687,2]
[404003945,1769710160483,-151.0,0.00015687,2]
[404003946,1769710160504,-151.0,0.00015687,2]
[404003947,1769710160525,-100.94320755,0.00015728,2]
[404003948,1769710161128,-199.05679245,0.00015728,2]
[404003949,1769710161153,-15408.91,0.00015729,2]
[404003950,1769710161176,-1222.04,0.00015729,2]
[404003951,1769710161198,-1848.57,0.00015729,2]
[404003952,1769710161218,-1071.11189023,0.00015737,5]
[404003953,1769710161237,-1852.42,0.00015796,2]
[404003954,1769710161262,-2114.47,0.00015801,2]
[404003955,1769710161288,-151.0,0.00015873,2]
[404003956,1769710161308,-181.22,0.00015873,2]
[404003957,1769710161333,-151.0,0.00015874,2]
[404003958,1769710161354,-151.0,0.00015874,2]
[404003959,1769710161374,-151.0,0.00015874,2]
[404003960,1769710161393,-500.0,0.00015915,2]
[404003961,1769710161412,-500.0,0.00015915,2]
[404003962,1769710161432,-500.0,0.00015915,2]
[404003963,1769710161452,-500.0,0.00015915,2]
[404003964,1769710161477,-500.0,0.00015915,2]
[404003965,1769710161499,-151.0,0.00015944,2]
[404003967,1769710164165,-150.0,0.00016164,2]
[404003968,1769710164189,-150.0,0.00016164,2]
[404003969,1769710164211,-500.0,0.00016164,2]
[404003970,1769710164232,-500.0,0.00016164,2]
[404003971,1769710164253,-150.0,0.00016164,2]
[404003972,1769710164278,-150.0,0.00016164,2]
[404003973,1769710164300,-150.0,0.00016164,2]